bitfinex-derivatives/quotes_ETHF0:USTF0_20241230
["timestamp","ask_amount","ask_price","bid_price","bid_amount"]
[1735521693093,0.29365,3412.4,3412.0,40.8]
[1735521693387,0.6251,3412.6,3412.0,40.8]
[1735521693591,3.8429,3412.9,3412.2,0.29366]
[1735521693792,4.1365,3412.9,3412.2,0.29366]
[1735521693988,3.8429,3412.9,3412.1,3.19254015]
[1735521694398,3.8429,3412.9,3412.4,3.2078]
[1735521694399,3.2078,3412.9,3412.4,3.2078]
[1735521694589,3.2078,3412.9,3412.4,3.50144]
[1735521695190,3.2078,3413.3,3412.4,3.2078]
[1735521695390,3.2078,3413.3,3412.7,0.29361]
[1735521695789,3.2078,3413.3,3412.8,0.2936]
[1735521695992,3.2078,3413.7,3413.1,3.19254015]
[1735521696493,3.50134,3413.7,3412.9,3.5014]
[1735521696789,3.50134,3413.7,3412.9,3.2078]
[1735521696997,0.29355,3413.6,3412.9,3.2078]
[1735521697291,0.29356,3413.5,3412.9,3.2078]
[1735521697492,0.29355,3413.6,3412.9,3.2078]
[1735521697687,3.2078,3413.7,3412.9,3.2078]
[1735521697892,0.29356,3413.5,3413.0,40.8]
[1735521698095,3.2078,3413.7,3412.9,3.2078]
[1735521698493,3.2078,3413.7,3413.0,40.8]
[1735521698796,3.2078,3413.7,3413.1,0.29358]
[1735521698998,0.29353,3413.8,3413.0,40.8]
[1735521698999,1.2285,3414.0,3413.4,0.29355]
[1735521699293,1.2285,3414.0,3413.3,3.2078]
[1735521699294,0.5932,3414.0,3413.3,3.2078]
[1735521699792,0.5932,3414.0,3413.4,0.29356]
[1735521700001,3.2078,3414.1,3413.6,3.19254015]
[1735521700189,3.2078,3414.1,3413.6,4.50554015]
[1735521700393,0.6299,3414.5,3414.0,3.2078]
[1735521700588,3.2078,3414.8,3414.2,0.29349]
[1735521700792,3.2078,3414.8,3414.0,3.2078]
[1735521700996,3.2078,3414.8,3414.3,0.29348]
[1735521701190,3.2078,3414.8,3414.6,0.29346]
[1735521701491,10.0,3415.0,3414.1,3.19254015]
[1735521701492,10.0,3415.0,3414.9,0.29343]
[1735521701696,13.2078,3415.0,3414.3,3.2078]
[1735521701894,0.01221373,3414.7,3414.3,3.2078]
[1735521702096,0.01221373,3414.7,3414.4,40.8]
[1735521702595,0.02442746,3414.6,3414.5,0.29346]
[1735521702992,0.03664119,3414.6,3414.5,40.8]
[1735521703293,13.2078,3415.0,3414.9,0.29343]
[1735521703294,10.0,3415.0,3414.9,0.29343]
[1735521703493,10.0,3415.0,3414.9,6.69377015]
[1735521704392,10.0,3415.0,3414.9,6.30494912]
[1735521704595,0.6066,3416.0,3415.7,0.29336]
[1735521704793,0.6066,3416.0,3415.7,3.09707912]
[1735521705096,4.1314085,3416.2,3415.7,2.80371912]
[1735521705294,4.1314085,3416.2,3415.8,0.29335]
[1735521705697,0.9236085,3416.2,3416.1,2.80371912]
[1735521705898,3.2078,3417.0,3416.2,0.29332]
[1735521706091,4.578225,3417.6,3415.5,1.6058]
[1735521706092,3.2078,3417.4,3416.9,2.80371912]
[1735521706292,0.29325,3417.0,3416.5,2.80371912]
[1735521706488,0.29325,3417.0,3416.6,40.8]
[1735521706694,0.29324,3417.1,3416.6,40.8]
[1735521706889,3.2078,3417.4,3416.6,42.112]
[1735521707097,0.29324,3417.1,3416.5,2.80371912]
[1735521707396,3.2078,3417.3,3416.5,4.11571912]
[1735521707699,3.2078,3417.3,3417.0,2.80371912]
[1735521707997,3.2078,3417.3,3416.5,1.312]
[1735521707998,8.2078,3417.3,3415.8,2.80371912]
[1735521708198,3.2078,3416.2,3415.8,2.80371912]
[1735521708398,3.2078,3416.6,3415.6,3.2078]
[1735521708600,3.8445,3416.1,3415.6,3.2078]
[1735521708903,0.6367,3416.1,3415.6,3.2078]
[1735521709099,0.93003,3416.1,3415.6,3.2078]
[1735521710102,0.6367,3416.1,3415.6,3.2078]
[1735521710602,0.6367,3416.1,3415.8,0.29335]
[1735521710998,0.6367,3416.1,3415.6,3.50116]
[1735521711223,0.6367,3416.1,3415.7,0.29336]
[1735521711398,0.6367,3416.1,3415.8,0.29335]
[1735521711593,0.6367,3416.1,3415.6,4.5198]
[1735521711798,0.6367,3416.1,3415.2,6.38797874]
[1735521712106,5.6367,3416.1,3415.2,6.38797874]
[1735521712603,3.50115,3415.8,3415.2,6.38797874]
[1735521712804,3.2078,3415.8,3415.2,6.68137874]
[1735521713226,3.2078,3415.8,3415.3,0.29339]
[1735521713539,8.2078,3415.8,3414.7,6.38797874]
[1735521713731,0.29338,3415.5,3414.8,0.29344]
[1735521713918,0.6047,3415.4,3414.8,0.29344]
[1735521714124,0.6047,3415.4,3414.9,0.29342]
[1735521714335,0.6047,3415.4,3414.7,6.38797874]
[1735521714530,0.6047,3415.4,3415.1,0.29341]
[1735521715219,0.6047,3415.4,3415.3,0.2934]
[1735521715418,3.2078,3415.8,3415.3,0.2934]
[1735521715618,3.2078,3415.8,3414.7,6.38797874]
[1735521715921,3.2078,3415.8,3414.8,40.8]
[1735521716114,0.29337,3415.7,3415.1,0.29341]
[1735521716314,0.29337,3415.7,3414.8,40.8]
[1735521716315,0.6055,3415.6,3415.2,0.2934]
[1735521716523,0.6055,3415.6,3415.5,0.29338]
[1735521716714,3.2078,3415.8,3415.2,3.18017874]
[1735521716917,3.2078,3415.8,3415.7,0.29336]
[1735521717328,0.6367,3416.1,3416.0,0.29334]
[1735521717711,0.6367,3416.1,3415.7,3.18017874]
[1735521717907,0.6367,3416.1,3416.0,0.29334]
[1735521718603,3.2078,3416.6,3416.0,3.2078]
[1735521718798,3.2078,3416.6,3416.5,0.29329]
[1735521719210,3.2078,3416.6,3416.4,3.18017874]
[1735521719411,3.2078,3416.6,3416.5,0.29329]
[1735521719707,3.2078,3416.6,3416.4,3.47347874]
[1735521720106,3.2078,3416.6,3416.5,40.8]
[1735521720909,3.2078,3416.6,3416.0,3.2078]
[1735521721109,3.2078,3416.6,3416.2,0.29331]
[1735521721309,3.2078,3416.6,3416.0,3.2078]
[1735521721511,3.2078,3416.6,3416.3,0.29331]
[1735521722112,3.2078,3416.6,3416.4,0.29329]
[1735521722405,3.2078,3416.6,3416.2,0.29331]
[1735521722611,3.2078,3416.6,3416.3,0.29331]
[1735521722809,3.2078,3416.6,3416.3,0.2933]
[1735521723009,3.2078,3416.6,3416.0,3.2078]
[1735521723209,3.2078,3416.6,3416.5,0.29329]
[1735521723410,3.2078,3416.6,3416.2,0.29331]
[1735521723909,3.2078,3416.6,3416.4,0.2933]
[1735521724103,3.2078,3416.6,3416.0,3.2078]
[1735521724617,3.2078,3416.6,3416.2,0.29331]
[1735521725106,3.2078,3416.6,3416.0,3.2078]
[1735521725107,3.2078,3416.6,3416.1,0.29333]
[1735521725314,3.2078,3416.6,3416.4,0.2933]
[1735521725911,3.2078,3416.6,3416.4,40.8]
[1735521726107,3.2078,3416.6,3416.3,0.29331]
[1735521726308,3.2078,3416.6,3416.4,0.2933]
[1735521726606,3.2078,3416.6,3416.5,40.8]
[1735521726811,3.2078,3416.6,3416.0,3.2078]
[1735521727109,3.2078,3416.6,3416.4,0.29329]
[1735521727414,3.2078,3416.6,3416.5,40.8]
[1735521727613,3.2078,3416.6,3416.5,41.09329]
[1735521728007,0.6393,3416.7,3416.5,40.8]
[1735521728410,3.2078,3416.6,3416.5,40.8]
[1735521728606,3.2078,3416.6,3415.9,4.72286315]
[1735521728805,3.2078,3416.6,3416.2,0.29332]
[1735521729119,3.2078,3416.6,3416.3,40.8]
[1735521729308,3.2078,3416.6,3416.4,3.18017874]
[1735521729509,3.2078,3416.6,3416.3,41.09331]
[1735521729710,3.2078,3416.6,3416.3,40.8]
[1735521729912,3.50109,3416.6,3416.1,0.29333]
[1735521730419,0.29329,3416.6,3416.3,2.80251598]
[1735521731109,0.634,3416.9,3416.3,2.80251598]
[1735521731316,0.29329,3416.6,3416.3,2.80251598]
[1735521731511,0.634,3416.9,3416.3,2.80251598]
[1735521731707,0.29328,3416.7,3416.3,2.80251598]
[1735521731914,0.29328,3416.6,3416.3,2.80251598]
[1735521732109,0.634,3416.9,3416.3,2.80251598]
[1735521732721,3.2078,3416.6,3416.3,2.80251598]
[1735521733518,3.2078,3416.6,3416.3,3.09582598]
[1735521733714,3.2078,3416.6,3416.3,2.80251598]
[1735521734214,3.2078,3416.6,3416.3,3.09582598]
[1735521734414,3.2078,3416.6,3416.3,2.80251598]
[1735521734610,3.2078,3416.6,3416.4,0.2933]
[1735521735319,3.2078,3416.6,3416.3,3.09581598]
[1735521735712,3.2078,3416.6,3416.5,40.8]
[1735521739022,3.50108,3416.6,3416.5,40.8]
[1735521739322,3.2078,3416.6,3416.5,41.02898671]
[1735521739623,3.50108,3416.6,3416.5,41.02898671]
[1735521740312,3.2078,3416.6,3416.5,41.02898671]
[1735521741524,3.38004189,3416.8,3416.7,0.29328]
[1735521741724,3.38004189,3416.8,3416.7,2.80251598]
[1735521741920,3.2078,3417.9,3416.7,10.60503196]
[1735521742117,3.2078,3417.9,3417.8,2.80251598]
[1735521742323,3.2078,3417.9,3417.8,3.09569598]
[1735521742624,3.2078,3417.9,3417.8,43.89569598]
[1735521743020,6.91079386,3418.4,3417.8,46.81031598]
[1735521743225,6.91079386,3418.4,3418.3,6.30345598]
[1735521743226,4.22038644,3418.4,3418.3,6.30345598]
[1735521743625,0.01063,3418.8,3418.3,6.01031598]
[1735521743822,0.30373,3418.8,3418.7,2.80251598]
[1735521744023,0.01063,3418.8,3418.7,2.80251598]
[1735521744225,0.01063,3418.8,3418.7,3.09561598]
[1735521745022,3.2078,3419.3,3418.7,5.60503196]
[1735521745218,4.10315239,3419.7,3419.6,0.29303]
[1735521745431,4.20212066,3420.2,3419.8,0.29301]
[1735521745725,4.20212066,3420.2,3419.9,0.293]
[1735521746029,4.20212066,3420.2,3419.6,7.31731598]
[1735521746030,4.20212066,3420.2,3420.0,40.8]
[1735521746230,3.57752066,3420.2,3420.0,40.8]
[1735521746433,3.57752066,3420.2,3420.0,41.09299]
[1735521746724,3.57752066,3420.2,3420.0,40.8]
[1735521746929,3.57752066,3420.2,3420.1,2.80251598]
[1735521747730,0.36972066,3420.2,3420.1,6.01031598]
[1735521750031,0.6225,3420.7,3420.1,46.81031598]
[1735521750226,0.6225,3420.7,3420.6,2.80251598]
[1735521750227,0.91543,3420.7,3420.6,2.80251598]
[1735521750527,0.91543,3420.7,3420.2,2.80251598]
[1735521750528,0.29294,3420.6,3420.2,2.80251598]
[1735521750733,0.6225,3420.7,3420.2,2.80251598]
[1735521751131,0.6225,3420.7,3420.5,3.2078]
[1735521751834,0.91544,3420.7,3420.5,3.2078]
[1735521752231,0.29294,3420.6,3420.5,3.2078]
[1735521752424,0.29294,3420.6,3420.2,2.80251598]
[1735521752733,0.29297,3420.4,3420.2,2.80251598]
[1735521753236,0.29296,3420.5,3420.2,2.80251598]
[1735521753424,0.6225,3420.7,3420.2,2.80251598]
[1735521753628,0.29296,3420.4,3420.1,3.2078]
[1735521753829,0.29298,3420.2,3420.1,3.2078]
[1735521754035,3.2078,3420.2,3419.4,2.80251598]
[1735521754227,3.2078,3420.6,3420.0,3.2078]
[1735521754435,3.50075,3420.6,3420.1,0.29298]
[1735521754734,3.2078,3420.6,3420.0,3.2078]
[1735521755028,3.2078,3420.6,3420.2,0.29297]
[1735521755226,0.6225,3420.7,3420.5,3.2078]
[1735521755829,0.29294,3420.6,3420.5,3.2078]
[1735521756227,0.6225,3420.7,3420.1,3.2078]
[1735521756425,0.29298,3420.2,3420.1,3.2078]
[1735521757129,0.6225,3420.7,3420.1,3.2078]
[1735521757531,0.29297,3420.3,3420.1,3.2078]
[1735521757941,0.6225,3420.7,3420.1,3.2078]
[1735521758237,0.29294,3420.6,3420.1,3.2078]
[1735521758436,0.6225,3420.7,3420.1,3.2078]
[1735521758838,0.91543,3420.7,3420.2,0.29297]
[1735521759342,0.6225,3420.7,3420.1,3.2078]
[1735521759636,0.6225,3420.7,3420.2,0.29297]
[1735521759830,0.91544,3420.7,3420.2,0.29298]
[1735521760038,0.6225,3420.7,3420.1,3.2078]
[1735521760542,0.6225,3420.7,3420.2,0.29298]
[1735521760740,0.6225,3420.7,3420.1,3.2078]
[1735521760942,0.91544,3420.7,3420.2,0.29297]
[1735521761333,0.6225,3420.7,3420.1,3.2078]
[1735521761843,0.29295,3420.5,3420.1,3.2078]
[1735521762237,0.6225,3420.7,3420.1,3.2078]
[1735521762446,0.29298,3420.2,3420.1,3.2078]
[1735521764437,0.29298,3420.2,3420.1,3.20131703]
[1735521765837,0.29303,3419.6,3419.5,3.2078]
[1735521766043,3.2078,3419.8,3418.8,2.80251598]
[1735521766239,0.6074,3419.7,3418.7,3.2078]
[1735521766448,0.29307,3419.1,3418.8,40.8]
[1735521766635,0.29305,3419.3,3418.6,0.23745155]
[1735521766936,5.0,3419.7,3419.0,3.2078]
[1735521766937,0.29303,3419.6,3419.0,3.2078]
[1735521767245,0.6074,3419.7,3419.1,41.09307]
[1735521767435,0.29303,3419.6,3419.1,41.09307]
[1735521767741,0.6074,3419.7,3419.3,0.29305]
[1735521767941,0.6074,3419.7,3419.4,3.2078]
[1735521768141,3.2078,3420.3,3419.4,3.2078]
[1735521768347,3.2078,3420.3,3420.0,0.29299]
[1735521768937,3.2078,3420.3,3419.9,0.293]
[1735521769339,3.2078,3420.3,3419.8,3.2078]
[1735521769538,3.2078,3420.3,3419.6,2.80251598]
[1735521770045,0.29304,3419.5,3419.4,3.2078]
[1735521770236,0.29303,3419.6,3419.2,2.80251598]
[1735521771045,0.29304,3419.4,3419.2,2.80251598]
[1735521771843,0.29305,3419.3,3419.2,2.80251598]
[1735521772142,0.29311,3418.7,3418.4,6.01031598]
[1735521772644,0.29313,3418.4,3418.3,40.8]
[1735521772832,0.29316,3418.1,3418.0,3.2078]
[1735521773232,0.73277,3418.7,3417.6,46.81031598]
[1735521773233,3.2078,3418.4,3417.6,46.81031598]
[1735521773441,3.2078,3418.0,3417.2,6.01031598]
[1735521773743,0.29322,3417.3,3417.2,6.01031598]
[1735521774135,0.29322,3417.3,3417.2,2.80251598]
[1735521774443,0.29326,3416.9,3416.8,2.80251598]
[1735521774741,3.2078,3417.6,3416.7,3.2078]
[1735521774742,0.29327,3416.8,3416.7,3.2078]
[1735521774939,3.2078,3417.6,3416.7,3.2078]
[1735521775140,3.2078,3417.6,3417.0,2.80251598]
[1735521775939,0.29324,3417.1,3417.0,2.80251598]
[1735521776140,8.2078,3417.6,3416.7,3.2078]
[1735521776341,3.2078,3417.6,3416.8,40.8]
[1735521776646,3.2078,3417.6,3417.0,2.80251598]
[1735521776839,0.29324,3417.1,3417.0,2.80251598]
[1735521777043,0.29326,3416.9,3416.8,40.8]
[1735521777340,3.2078,3417.2,3416.2,6.01031598]
[1735521777646,0.29326,3417.0,3416.6,2.80251598]
[1735521777946,0.29327,3416.8,3416.7,40.8]
[1735521778142,3.2078,3417.2,3416.7,40.8]
[1735521778344,0.29324,3417.1,3416.7,40.8]
[1735521778550,0.29325,3417.0,3416.7,40.8]
[1735521778846,0.29325,3417.1,3416.7,40.8]
[1735521779040,0.29325,3417.0,3416.7,40.8]
[1735521779640,0.29326,3416.9,3416.7,40.8]
[1735521779945,3.2078,3417.2,3416.7,40.8]
[1735521780146,0.29331,3416.3,3416.2,6.01031598]
[1735521780451,0.73311,3417.1,3415.3,6.01031598]
[1735521780452,0.29334,3415.9,3415.3,6.01031598]
[1735521780648,3.2078,3416.4,3415.4,40.8]
[1735521780845,0.29335,3415.9,3415.4,40.8]
[1735521781044,0.29336,3415.7,3415.4,40.8]
[1735521781348,0.6525,3416.3,3415.3,6.01031598]
[1735521781349,3.2078,3416.0,3415.3,2.80251598]
[1735521781543,0.29337,3415.6,3415.3,2.80251598]
[1735521781739,3.2078,3416.9,3415.5,3.2078]
[1735521781939,3.2078,3416.9,3416.6,2.80251598]
[1735521782250,3.2078,3416.9,3415.6,1.296]
[1735521782251,0.6335,3417.0,3416.1,3.17879618]
[1735521782543,3.2078,3416.9,3416.1,6.38659618]
[1735521782743,2.27232441,3417.2,3416.6,3.2078]
[1735521783255,2.27232441,3417.2,3416.2,3.2078]
[1735521783256,0.29329,3416.5,3416.2,3.2078]
[1735521783548,2.27232441,3417.2,3416.2,3.2078]
[1735521783747,0.29326,3417.0,3416.6,3.2078]
[1735521783952,3.2078,3417.4,3416.6,3.2078]
[1735521784139,8.2078,3417.4,3416.1,3.17879618]
[1735521784346,3.2078,3417.4,3416.2,3.2078]
[1735521784547,0.29324,3417.2,3416.6,3.2078]
[1735521784839,3.2078,3417.4,3416.6,3.2078]
[1735521785248,0.29322,3417.3,3416.7,0.29327]
[1735521785452,3.50102,3417.4,3416.8,0.29327]
[1735521785652,3.2078,3417.4,3416.9,40.8]
[1735521786044,3.2078,3418.0,3416.9,40.8]
[1735521786345,3.2078,3417.6,3417.1,3.2078]
[1735521786549,0.94949,3417.8,3417.1,3.50104]
[1735521786852,3.2078,3418.0,3417.4,0.29321]
[1735521787153,3.50097,3418.0,3417.4,0.29321]
[1735521787544,3.2078,3418.0,3417.2,0.1971]
[1735521787845,4.90456441,3418.9,3417.9,3.2078]
[1735521787846,0.29313,3418.4,3417.9,3.2078]
[1735521788046,3.2078,3418.6,3417.9,3.2078]
[1735521788445,3.2078,3418.6,3417.4,4.5128]
[1735521788752,0.2932,3417.7,3417.4,3.2078]
[1735521789045,3.2078,3418.2,3417.4,3.2078]
[1735521789046,0.29321,3417.5,3417.4,3.2078]
[1735521789447,0.5997,3417.6,3417.4,3.2078]
[1735521789651,0.29321,3417.5,3417.4,44.0078]
[1735521789848,0.29321,3417.5,3417.4,3.2078]
[1735521790351,0.29321,3417.5,3416.4,3.2078]
[1735521790352,5.0,3417.5,3416.4,3.2078]
[1735521790547,3.2078,3417.2,3416.4,3.2078]
[1735521790743,3.2078,3416.9,3416.4,3.2078]
[1735521790952,0.29329,3416.5,3416.4,3.2078]
[1735521791153,3.2078,3416.9,3415.9,3.2078]
[1735521791154,8.2078,3416.9,3415.9,3.2078]
[1735521791358,0.29331,3416.4,3415.9,3.2078]
[1735521791653,1.33913,3417.1,3415.6,1.305]
[1735521791654,0.606,3417.1,3416.3,3.5011]
[1735521791853,0.29327,3416.8,3416.7,3.2078]
[1735521792051,0.6521,3417.4,3416.7,3.2078]
[1735521792256,0.6521,3417.4,3417.1,3.2078]
[1735521792550,0.29323,3417.3,3417.1,3.2078]
[1735521792750,0.29323,3417.2,3417.1,3.2078]
[1735521793146,3.2078,3417.4,3416.6,3.2078]
[1735521793551,3.2078,3416.7,3416.0,3.2078]
[1735521793750,0.29333,3416.1,3416.0,3.2078]
[1735521793957,0.6372,3416.6,3415.5,44.0078]
[1735521793958,1.9366,3416.6,3415.5,44.0078]
[1735521794155,3.2078,3416.3,3415.5,44.0078]
[1735521794651,0.29336,3415.8,3415.5,44.0078]
[1735521794851,0.29336,3415.8,3415.5,40.8]
[1735521795160,1.9366,3416.6,3415.5,40.8]
[1735521795458,0.29337,3415.6,3415.5,40.8]
[1735521795658,0.29336,3415.8,3415.5,40.8]
[1735521796461,3.2078,3416.5,3415.5,40.8]
[1735521796462,0.73326,3416.4,3415.5,40.8]
[1735521796752,0.29337,3415.7,3415.5,40.8]
[1735521796956,0.29336,3415.8,3415.5,40.8]
[1735521797156,3.2078,3416.5,3415.5,40.8]
[1735521797455,0.29331,3416.3,3415.9,3.50114]
[1735521797650,3.2078,3416.5,3415.9,3.50114]
[1735521797651,3.2078,3416.5,3415.9,3.2078]
[1735521797855,0.29333,3416.1,3416.0,40.8]
[1735521798055,3.2078,3416.5,3416.0,40.8]
[1735521798458,1.2989,3416.6,3415.5,3.50118]
[1735521798761,1.2989,3416.6,3415.9,3.2078]
[1735521798762,4.5067,3416.6,3415.9,3.2078]
[1735521798963,4.5067,3416.6,3416.0,40.8]
[1735521799257,4.5067,3416.6,3415.9,3.2078]
[1735521799258,0.29335,3415.8,3415.7,3.2078]
[1735521799456,0.29331,3416.3,3415.8,0.29335]
[1735521799658,4.5067,3416.6,3416.1,0.29332]
[1735521799659,4.79999,3416.6,3416.1,0.29332]
[1735521799859,4.79999,3416.6,3415.9,40.8]
[1735521799860,4.5067,3416.6,3415.9,40.8]
[1735521800356,4.5067,3416.6,3416.2,0.29331]
[1735521800758,0.6158,3417.1,3416.2,3.2078]
[1735521801062,0.29325,3417.0,3416.9,3.2078]
[1735521801257,1.2357,3417.4,3416.9,3.2078]
[1735521802059,3.50097,3418.0,3417.0,0.29325]
[1735521802257,4.71017,3418.0,3417.5,0.2932]
[1735521802558,4.417,3418.0,3417.3,3.50102]
[1735521802758,0.2932,3417.6,3417.3,3.2078]
[1735521802960,4.417,3418.0,3417.3,3.2078]
[1735521803459,1.2092,3418.0,3417.4,0.29321]
[1735521803763,1.2092,3418.0,3417.3,3.2078]
[1735521803956,0.29322,3417.4,3417.3,3.2078]
[1735521804659,0.29323,3417.3,3416.8,3.2078]
[1735521804857,3.2078,3417.6,3416.9,0.29326]
[1735521805058,0.29324,3417.2,3416.8,3.2078]
[1735521805256,0.29326,3416.9,3416.8,3.2078]
[1735521805465,3.2078,3417.0,3416.2,3.2078]
[1735521805761,0.29331,3416.3,3415.9,0.29334]
[1735521805950,0.29332,3416.2,3415.9,0.29334]
[1735521806154,3.2078,3416.8,3416.1,3.2078]
[1735521806358,3.2078,3416.8,3416.7,0.29328]
[1735521806559,0.6165,3417.1,3416.6,3.2078]
[1735521806776,0.29326,3416.9,3416.6,3.2078]
[1735521806954,3.2078,3416.8,3416.3,40.8]
[1735521807154,0.29329,3416.6,3416.3,40.8]
[1735521807355,3.2078,3416.8,3416.5,0.29329]
[1735521807560,0.6165,3417.1,3416.3,40.8]
[1735521807766,0.29325,3417.0,3416.6,3.50108]
[1735521808064,0.29325,3417.0,3416.7,0.29327]
[1735521808265,3.50107,3416.9,3416.5,0.29329]
[1735521808457,0.29327,3416.9,3416.6,0.29328]
[1735521808656,0.90975,3417.1,3416.7,0.29327]
[1735521808957,0.29327,3416.9,3416.6,3.2078]
[1735521809167,0.29329,3416.6,3416.3,41.09331]
[1735521809358,3.2078,3416.8,3416.0,3.2078]
[1735521809559,0.2933,3416.5,3416.1,0.29333]
[1735521809855,3.2078,3416.8,3416.1,40.8]
[1735521810160,3.2078,3416.8,3416.0,3.2078]
[1735521810361,0.2933,3416.5,3416.1,0.29333]
[1735521810564,3.2078,3416.8,3416.0,44.0078]
[1735521810762,3.2078,3416.8,3416.0,3.2078]
[1735521810968,0.29328,3416.7,3416.0,3.50113]
[1735521811161,0.29329,3416.6,3416.1,0.29332]
[1735521811467,0.93819,3416.6,3416.1,0.29332]
[1735521811961,0.29331,3416.4,3416.0,3.2078]
[1735521812264,0.6449,3416.6,3416.0,3.2078]
[1735521812766,0.6449,3416.6,3416.2,0.29331]
[1735521813666,0.93819,3416.6,3416.2,0.29331]
[1735521813962,0.6449,3416.6,3416.0,3.2078]
[1735521814165,3.2078,3416.4,3415.6,3.2078]
[1735521814364,3.2078,3416.4,3416.0,0.29333]
[1735521814365,3.5011,3416.4,3416.0,0.29333]
[1735521814865,3.5011,3416.4,3415.6,3.2078]
[1735521814866,0.29334,3416.0,3415.6,3.2078]
[1735521815083,3.2078,3416.4,3415.6,3.2078]
[1735521815366,0.6121,3415.9,3415.6,3.2078]
[1735521815666,0.6121,3415.9,3415.6,3.50117]
[1735521815961,0.6121,3415.9,3414.6,0.7667]
[1735521815962,0.2934,3415.3,3415.1,3.2078]
[1735521816168,4.13996,3415.8,3415.4,0.29338]
[1735521816369,3.8466,3415.8,3415.6,0.29337]
[1735521816664,3.2078,3415.8,3415.7,0.29336]
[1735521817064,3.2078,3416.2,3416.1,0.29333]
[1735521817462,3.2078,3416.2,3416.1,41.09333]
[1735521818164,3.2078,3416.2,3416.1,40.8]
[1735521818765,3.2078,3416.2,3416.1,41.09333]
[1735521818970,3.2078,3416.2,3416.1,40.8]
[1735521819158,3.2078,3416.2,3415.7,0.29336]
[1735521819366,3.2078,3416.2,3415.3,0.5296]
[1735521819666,3.2078,3416.2,3415.4,40.8]
[1735521819865,0.29333,3416.1,3415.7,0.29336]
[1735521820067,0.29335,3415.9,3415.5,0.29338]
[1735521820262,3.2078,3416.2,3415.5,0.29338]
[1735521820263,0.29334,3416.0,3415.5,0.29338]
[1735521820464,3.2078,3416.2,3415.4,40.8]
[1735521820660,2.27232441,3416.1,3415.4,40.8]
[1735521820861,2.27232441,3416.1,3415.6,3.2078]
[1735521821059,2.27232441,3416.1,3416.0,0.29334]
[1735521822072,0.6264,3416.4,3416.2,0.29331]
[1735521822272,0.6264,3416.4,3415.6,3.2078]
[1735521822468,2.27232441,3416.6,3416.5,0.29329]
[1735521822964,2.15762441,3416.6,3416.5,5.29329]
[1735521823166,0.82681446,3416.6,3416.5,5.29329]
[1735521823384,9.5e-07,3416.7,3416.5,5.0]
[1735521823563,9.5e-07,3416.7,3416.6,3.50108]
[1735521823961,9.5e-07,3416.7,3416.6,8.50108]
[1735521824567,1.2729,3418.0,3416.6,8.2078]
[1735521824774,1.2729,3418.0,3417.9,0.29317]
[1735521825867,1.2729,3418.0,3417.9,41.09317]
[1735521825868,0.6171,3418.0,3417.9,41.09317]
[1735521826069,3.41425146,3418.2,3418.1,0.29316]
[1735521826561,3.41425146,3418.2,3417.9,40.8]
[1735521826761,3.41425146,3418.2,3417.6,3.2078]
[1735521826977,3.41425146,3418.2,3418.1,0.29316]
[1735521827271,3.41425146,3418.2,3417.7,40.8]
[1735521827470,3.2078,3418.4,3417.6,3.50099]
[1735521827775,3.50098,3417.9,3417.3,0.29322]
[1735521828172,1.2778,3417.8,3417.2,3.2078]
[1735521828472,0.6334,3417.7,3417.4,0.29321]
[1735521828774,0.6334,3417.7,3417.6,6.3019948]
[1735521830364,0.6334,3417.7,3416.9,40.8]
[1735521830365,0.6334,3417.7,3417.5,0.2932]
[1735521830566,0.6334,3417.7,3417.2,3.2078]
[1735521830874,0.6334,3417.7,3417.6,0.2932]
[1735521831070,0.6334,3417.7,3417.2,3.2078]
[1735521831278,1.2512,3417.6,3417.2,3.50103]
[1735521831465,0.29321,3417.5,3417.2,3.2078]
[1735521832168,1.2512,3417.6,3417.2,3.2078]
[1735521832375,0.29323,3417.3,3416.8,0.29327]
[1735521832665,0.29323,3417.3,3416.9,0.29326]
[1735521832866,1.2512,3417.6,3416.3,3.2078]
[1735521833073,0.29326,3417.0,3416.3,3.2078]
[1735521833272,0.29326,3417.0,3416.6,0.29328]
[1735521833775,0.29328,3416.7,3416.3,0.2933]
[1735521834070,0.6612,3416.6,3416.0,0.29334]
[1735521834273,2.1146,3416.6,3415.9,3.2078]
[1735521834472,1.3883,3416.6,3415.9,3.2078]
[1735521834675,1.3883,3416.6,3416.4,0.2933]
[1735521834874,1.68158,3416.6,3416.3,0.29331]
[1735521835074,1.3883,3416.6,3416.4,0.2933]
[1735521835273,1.3883,3416.6,3415.9,3.2078]
[1735521835474,3.2078,3416.9,3416.8,0.29327]
[1735521835783,3.41425146,3416.9,3416.8,41.09327]
[1735521836974,3.2078,3417.4,3416.8,41.09327]
[1735521836975,3.2078,3417.4,3417.1,0.29323]
[1735521837276,3.2078,3417.4,3416.8,40.8]
[1735521837485,3.2078,3417.4,3417.3,0.29322]
[1735521837675,3.41425146,3417.6,3417.5,0.29321]
[1735521838179,3.41425146,3418.1,3417.3,3.2078]
[1735521838381,3.41425146,3418.1,3417.9,0.29317]
[1735521838992,3.41425146,3418.1,3418.0,0.29316]
[1735521839375,13.35705857,3418.4,3418.0,0.29316]
[1735521839580,5.59935146,3418.4,3418.1,0.29315]
[1735521839780,4.86135146,3418.4,3418.3,0.29314]
[1735521839983,3.41425146,3418.4,3418.3,0.29314]
[1735521840682,0.29311,3418.7,3418.3,0.29314]
[1735521840876,6.62205146,3418.9,3418.2,0.29315]
[1735521841080,0.2931,3418.8,3418.4,0.29312]
[1735521841387,0.2931,3418.8,3418.5,0.29311]